[Event "Titled Tuesday Blitz March 08 Early 2022"]
[White "Fus, Jakub"]
[Black "Garv Gaur"]
[WhiteFideId "1193023"]
[BlackFideId "45030839"]
[WhiteElo "2111"]
[BlackElo "1950"]
[Result "0-1"]
[Round "05"]
[TimeControl "180+1"]
[Date "2022.03.09"]
[WhiteClock "0:01:16"]
[BlackClock "0:01:33"]

1. Nf3 {[%clk 0:03:00]}  d5 {[%clk 0:02:59]} 2. e3 {[%clk 0:02:56]}  Nf6 {[%clk 0:02:58]} 3. c4 {[%clk 0:02:56]}  e6 {[%clk 0:02:58]} 4. b3 {[%clk 0:02:49]}  Be7 {[%clk 0:02:58]} 5. Bb2 {[%clk 0:02:49]}  O-O {[%clk 0:02:58]} 6. Nc3 {[%clk 0:02:48]}  b6 {[%clk 0:02:58]} 7. cxd5 {[%clk 0:02:47]}  exd5 {[%clk 0:02:57]} 8. d4 {[%clk 0:02:46]}  c5 {[%clk 0:02:57]} 9. Be2 {[%clk 0:02:42]}  Bb7 {[%clk 0:02:49]} 10. O-O {[%clk 0:02:41]}  Nc6 {[%clk 0:02:49]} 11. Rc1 {[%clk 0:02:40]}  Rc8 {[%clk 0:02:48]} 12. Bd3 {[%clk 0:02:30]}  cxd4 {[%clk 0:02:39]} 13. exd4 {[%clk 0:02:29]}  Nb4 {[%clk 0:02:34]} 14. Bb1 {[%clk 0:02:29]}  Ne4 {[%clk 0:02:25]} 15. Re1 {[%clk 0:02:25]}  f5 {[%clk 0:02:09]} 16. Ne2 {[%clk 0:02:16]}  Qd6 {[%clk 0:01:55]} 17. Ne5 {[%clk 0:02:04]}  Bg5 {[%clk 0:01:48]} 18. Rxc8 {[%clk 0:01:55]}  Rxc8 {[%clk 0:01:49]} 19. f3 {[%clk 0:01:47]}  Be3+ {[%clk 0:01:45]} 20. Kf1 {[%clk 0:01:40]}  Nf2 {[%clk 0:01:46]} 21. Ba3 {[%clk 0:01:33]}  Nxd1 {[%clk 0:01:44]} 22. Rxd1 {[%clk 0:01:34]}  a5 {[%clk 0:01:44]} 23. Bxf5 {[%clk 0:01:26]}  Rf8 {[%clk 0:01:39]} 24. Bb1 {[%clk 0:01:25]}  Ba6 {[%clk 0:01:37]} 25. g3 {[%clk 0:01:20]}  Bxd4 {[%clk 0:01:34]} 26. Rxd4 {[%clk 0:01:15]}  Qxe5 {[%clk 0:01:34]} 27. Rd2 {[%clk 0:01:16]}  Rxf3+ {[%clk 0:01:33]} 0-1


[Site "https://www.chess.com"]

[Event "Titled Tuesday Blitz March 08 Early 2022"]
[White "Gabrielian, Artur"]
[Black "Jobava, Baadur"]
[WhiteFideId "4131002"]
[BlackFideId "13601520"]
[WhiteElo "2762"]
[BlackElo "2944"]
[Result "0-1"]
[Round "05"]
[TimeControl "180+1"]
[Date "2022.03.08"]
[WhiteClock "0:00:00"]
[BlackClock "0:00:05"]

1. e4 {[%clk 0:03:00]}  c6 {[%clk 0:02:59]} 2. d4 {[%clk 0:03:00]}  d5 {[%clk 0:03:00]} 3. e5 {[%clk 0:03:01]}  Bf5 {[%clk 0:02:59]} 4. h4 {[%clk 0:03:01]}  Qc7 {[%clk 0:02:58]} 5. Bd3 {[%clk 0:03:00]}  Bxd3 {[%clk 0:02:58]} 6. Qxd3 {[%clk 0:03:00]}  e6 {[%clk 0:02:59]} 7. Nf3 {[%clk 0:02:45]}  c5 {[%clk 0:02:58]} 8. Nc3 {[%clk 0:02:26]}  a6 {[%clk 0:02:56]} 9. Ne2 {[%clk 0:02:25]}  cxd4 {[%clk 0:02:55]} 10. Nexd4 {[%clk 0:02:25]}  Ne7 {[%clk 0:02:54]} 11. O-O {[%clk 0:02:24]}  Nbc6 {[%clk 0:02:54]} 12. Re1 {[%clk 0:02:23]}  Nxd4 {[%clk 0:02:50]} 13. Nxd4 {[%clk 0:02:23]}  Nc6 {[%clk 0:02:51]} 14. c3 {[%clk 0:02:19]}  Be7 {[%clk 0:02:35]} 15. Qg3 {[%clk 0:02:13]}  g6 {[%clk 0:02:30]} 16. Bg5 {[%clk 0:02:08]}  h6 {[%clk 0:02:24]} 17. Bxe7 {[%clk 0:02:03]}  Nxe7 {[%clk 0:02:22]} 18. a4 {[%clk 0:01:40]}  O-O-O {[%clk 0:02:20]} 19. b4 {[%clk 0:01:34]}  Nf5 {[%clk 0:02:15]} 20. Qd3 {[%clk 0:01:32]}  Qc4 {[%clk 0:02:11]} 21. Qd2 {[%clk 0:01:29]}  Nxh4 {[%clk 0:02:03]} 22. a5 {[%clk 0:01:28]}  Nf5 {[%clk 0:01:59]} 23. b5 {[%clk 0:01:27]}  Kd7 {[%clk 0:01:43]} 24. bxa6 {[%clk 0:01:19]}  bxa6 {[%clk 0:01:33]} 25. Rab1 {[%clk 0:00:53]}  Rb8 {[%clk 0:01:31]} 26. Rb6 {[%clk 0:00:43]}  Rxb6 {[%clk 0:01:28]} 27. axb6 {[%clk 0:00:44]}  Rb8 {[%clk 0:01:28]} 28. Rb1 {[%clk 0:00:40]}  Qc5 {[%clk 0:00:59]} 29. Qb2 {[%clk 0:00:38]}  Rb7 {[%clk 0:00:56]} 30. Nxf5 {[%clk 0:00:17]}  gxf5 {[%clk 0:00:56]} 31. Qb3 {[%clk 0:00:13]}  a5 {[%clk 0:00:40]} 32. Qa4+ {[%clk 0:00:13]}  Ke7 {[%clk 0:00:40]} 33. Qh4+ {[%clk 0:00:09]}  Ke8 {[%clk 0:00:38]} 34. Qa4+ {[%clk 0:00:07]}  Kf8 {[%clk 0:00:38]} 35. Qh4 {[%clk 0:00:07]}  Ke8 {[%clk 0:00:28]} 36. Qa4+ {[%clk 0:00:07]}  Kd8 {[%clk 0:00:25]} 37. Qh4+ {[%clk 0:00:06]}  Kc8 {[%clk 0:00:12]} 38. Qxh6 {[%clk 0:00:04]}  Rxb6 {[%clk 0:00:10]} 39. Ra1 {[%clk 0:00:04]}  Kb7 {[%clk 0:00:08]} 40. Qh7 {[%clk 0:00:04]}  Qc7 {[%clk 0:00:08]} 41. Qg8 {[%clk 0:00:04]}  Rb3 {[%clk 0:00:05]} 42. Qe8 {[%clk 0:00:03]}  Rxc3 {[%clk 0:00:05]} 43. Qb5+ {[%clk 0:00:03]}  Qb6 {[%clk 0:00:03]} 44. Qe8 {[%clk 0:00:03]}  Rc7 {[%clk 0:00:04]} 45. Qf8 {[%clk 0:00:02]}  Ka7 {[%clk 0:00:03]} 46. Qa3 {[%clk 0:00:01]}  Rc5 {[%clk 0:00:04]} 47. Qd3 {[%clk 0:00:01]}  Kb7 {[%clk 0:00:04]} 48. Qg3 {[%clk 0:00:01]}  Rb5 {[%clk 0:00:04]} 49. Qg7 {[%clk 0:00:01]}  Rb1+ {[%clk 0:00:04]} 50. Rxb1 {[%clk 0:00:01]}  Qxb1+ {[%clk 0:00:05]} 51. Kh2 {[%clk 0:00:01]}  Qb6 {[%clk 0:00:06]} 52. Qxf7+ {[%clk 0:00:01]}  Ka6 {[%clk 0:00:07]} 53. Qe8 {[%clk 0:00:00]}  d4 {[%clk 0:00:05]} 0-1


[Site "https://www.chess.com"]

[Event "Titled Tuesday Blitz March 08 Early 2022"]
[White "Garriga Cazorla, Pere"]
[Black "Mkrtchyan, Mariam"]
[WhiteFideId "32011601"]
[BlackFideId "13310828"]
[WhiteElo "2458"]
[BlackElo "1984"]
[Result "1-0"]
[Round "05"]
[TimeControl "180+1"]
[Date "2022.03.09"]
[WhiteClock "0:00:18"]
[BlackClock "0:00:01"]

1. Nf3 {[%clk 0:03:00]}  g6 {[%clk 0:02:59]} 2. h4 {[%clk 0:02:59]}  Nf6 {[%clk 0:02:57]} 3. c4 {[%clk 0:02:57]}  Bg7 {[%clk 0:02:54]} 4. Nc3 {[%clk 0:02:58]}  d6 {[%clk 0:02:54]} 5. d4 {[%clk 0:02:54]}  Bg4 {[%clk 0:02:52]} 6. Qb3 {[%clk 0:02:39]}  Qc8 {[%clk 0:02:46]} 7. Bg5 {[%clk 0:02:35]}  O-O {[%clk 0:02:42]} 8. e3 {[%clk 0:02:34]}  Nc6 {[%clk 0:02:29]} 9. Be2 {[%clk 0:02:31]}  e5 {[%clk 0:02:22]} 10. dxe5 {[%clk 0:02:27]}  dxe5 {[%clk 0:02:20]} 11. Rd1 {[%clk 0:02:24]}  Nd7 {[%clk 0:01:58]} 12. h5 {[%clk 0:02:16]}  Bxh5 {[%clk 0:01:54]} 13. Nd5 {[%clk 0:02:15]}  Re8 {[%clk 0:01:38]} 14. Qc2 {[%clk 0:02:04]}  a5 {[%clk 0:01:27]} 15. c5 {[%clk 0:01:53]}  Bg4 {[%clk 0:01:19]} 16. Rh4 {[%clk 0:01:47]}  Bf5 {[%clk 0:01:16]} 17. e4 {[%clk 0:01:30]}  Be6 {[%clk 0:01:14]} 18. Kf1 {[%clk 0:01:31]}  f6 {[%clk 0:00:56]} 19. Be3 {[%clk 0:01:30]}  Nf8 {[%clk 0:00:55]} 20. Qc1 {[%clk 0:01:27]}  h5 {[%clk 0:00:50]} 21. Bb5 {[%clk 0:01:17]}  Rd8 {[%clk 0:00:47]} 22. Bxc6 {[%clk 0:01:16]}  Kf7 {[%clk 0:00:41]} 23. Ba4 {[%clk 0:01:12]}  Nd7 {[%clk 0:00:36]} 24. Bb3 {[%clk 0:01:03]}  Nf8 {[%clk 0:00:34]} 25. Bc4 {[%clk 0:00:50]}  a4 {[%clk 0:00:33]} 26. Kg1 {[%clk 0:00:49]}  Qd7 {[%clk 0:00:31]} 27. Rh1 {[%clk 0:00:44]}  Qc6 {[%clk 0:00:24]} 28. Kh2 {[%clk 0:00:40]}  g5 {[%clk 0:00:19]} 29. Qc2 {[%clk 0:00:36]}  Ng6 {[%clk 0:00:17]} 30. Nb4 {[%clk 0:00:36]}  Qe8 {[%clk 0:00:15]} 31. c6 {[%clk 0:00:25]}  b6 {[%clk 0:00:12]} 32. Bd5 {[%clk 0:00:24]}  h4 {[%clk 0:00:10]} 33. Bxg5 {[%clk 0:00:20]}  h3 {[%clk 0:00:07]} 34. g3 {[%clk 0:00:19]}  Nf8 {[%clk 0:00:05]} 35. Be3 {[%clk 0:00:18]}  Kg6 {[%clk 0:00:05]} 36. Nh4+ {[%clk 0:00:18]}  Kh7 {[%clk 0:00:03]} 37. Bxe6 {[%clk 0:00:19]}  Nxe6 {[%clk 0:00:03]} 38. Nf5 {[%clk 0:00:19]}  Bf8 {[%clk 0:00:04]} 39. Nd5 {[%clk 0:00:19]}  Bg7 {[%clk 0:00:02]} 40. Kxh3 {[%clk 0:00:19]}  Kg6 {[%clk 0:00:01]} 41. Kg2 {[%clk 0:00:20]}  Kf7 {[%clk 0:00:01]} 42. Qc4 {[%clk 0:00:19]}  Kg6 {[%clk 0:00:01]} 43. Rh4 {[%clk 0:00:18]}  a3 {[%clk 0:00:01]} 44. b4 {[%clk 0:00:18]}  Qf7 {[%clk 0:00:02]} 45. Rdh1 {[%clk 0:00:18]}  Rh8 {[%clk 0:00:02]} 46. Rg4+ {[%clk 0:00:18]}  Ng5 {[%clk 0:00:01]} 47. Nde7+ {[%clk 0:00:18]} 1-0


[Site "https://www.chess.com"]

[Event "Titled Tuesday Blitz March 08 Early 2022"]
[White "Goltseva, Ekaterina"]
[Black "Lewtak, Damian"]
[WhiteFideId "24173770"]
[BlackFideId "1141724"]
[WhiteElo "2140"]
[BlackElo "2362"]
[Result "1-0"]
[Round "05"]
[TimeControl "180+1"]
[Date "2022.03.09"]
[WhiteClock "0:01:16"]
[BlackClock "0:01:08"]

1. d4 {[%clk 0:03:00]}  Nf6 {[%clk 0:02:48]} 2. c4 {[%clk 0:03:01]}  Nc6 {[%clk 0:02:47]} 3. Nf3 {[%clk 0:03:00]}  d6 {[%clk 0:02:47]} 4. g3 {[%clk 0:02:59]}  e5 {[%clk 0:02:47]} 5. Bg2 {[%clk 0:02:59]}  Bg4 {[%clk 0:02:45]} 6. Nc3 {[%clk 0:02:57]}  Bxf3 {[%clk 0:02:41]} 7. Bxf3 {[%clk 0:02:57]}  exd4 {[%clk 0:02:42]} 8. Nb5 {[%clk 0:02:55]}  Be7 {[%clk 0:02:35]} 9. Nxd4 {[%clk 0:02:54]}  Nxd4 {[%clk 0:02:36]} 10. Qxd4 {[%clk 0:02:54]}  c6 {[%clk 0:02:37]} 11. O-O {[%clk 0:02:54]}  O-O {[%clk 0:02:35]} 12. Bf4 {[%clk 0:02:53]}  Qd7 {[%clk 0:02:31]} 13. Rfd1 {[%clk 0:02:51]}  Rfd8 {[%clk 0:02:30]} 14. Rd2 {[%clk 0:02:46]}  Ne8 {[%clk 0:02:30]} 15. Rad1 {[%clk 0:02:46]}  Bf6 {[%clk 0:02:26]} 16. Qe4 {[%clk 0:02:42]}  Qe7 {[%clk 0:02:22]} 17. Qxe7 {[%clk 0:02:38]}  Bxe7 {[%clk 0:02:21]} 18. b4 {[%clk 0:02:38]}  a5 {[%clk 0:02:15]} 19. b5 {[%clk 0:02:38]}  Rdc8 {[%clk 0:02:02]} 20. a4 {[%clk 0:02:23]}  Rab8 {[%clk 0:01:56]} 21. Bg4 {[%clk 0:02:16]}  Rd8 {[%clk 0:01:51]} 22. c5 {[%clk 0:02:15]}  cxb5 {[%clk 0:01:47]} 23. cxd6 {[%clk 0:02:06]}  Nxd6 {[%clk 0:01:38]} 24. Bxd6 {[%clk 0:02:05]}  Bxd6 {[%clk 0:01:36]} 25. Rxd6 {[%clk 0:02:05]}  Rxd6 {[%clk 0:01:37]} 26. Rxd6 {[%clk 0:02:05]}  bxa4 {[%clk 0:01:38]} 27. Bd7 {[%clk 0:01:56]}  b5 {[%clk 0:01:33]} 28. Bxb5 {[%clk 0:01:54]}  a3 {[%clk 0:01:33]} 29. Bc4 {[%clk 0:01:47]}  Kf8 {[%clk 0:01:33]} 30. Ra6 {[%clk 0:01:38]}  Rb4 {[%clk 0:01:32]} 31. Ra8+ {[%clk 0:01:30]}  Ke7 {[%clk 0:01:32]} 32. Ra7+ {[%clk 0:01:31]}  Kf8 {[%clk 0:01:23]} 33. Bxf7 {[%clk 0:01:27]}  Rb2 {[%clk 0:01:20]} 34. Bd5 {[%clk 0:01:23]}  Rb5 {[%clk 0:01:08]} 35. e4 {[%clk 0:01:16]} 1-0


[Site "https://www.chess.com"]

[Event "Titled Tuesday Blitz March 08 Early 2022"]
[White "Golubka, Petro"]
[Black "Kollars, Dmitrij"]
[WhiteFideId "14114224"]
[BlackFideId "12909572"]
[WhiteElo "2346"]
[BlackElo "2584"]
[Result "0-1"]
[Round "05"]
[TimeControl "180+1"]
[Date "2022.03.08"]
[WhiteClock "0:00:10"]
[BlackClock "0:00:56"]

1. e4 {[%clk 0:02:14]}  c6 {[%clk 0:02:58]} 2. d4 {[%clk 0:02:09]}  d5 {[%clk 0:02:58]} 3. e5 {[%clk 0:02:09]}  Bf5 {[%clk 0:02:58]} 4. Nf3 {[%clk 0:02:07]}  e6 {[%clk 0:02:58]} 5. Be2 {[%clk 0:02:07]}  c5 {[%clk 0:02:58]} 6. O-O {[%clk 0:02:05]}  Nc6 {[%clk 0:02:58]} 7. Be3 {[%clk 0:02:05]}  cxd4 {[%clk 0:02:58]} 8. Nxd4 {[%clk 0:02:06]}  Nge7 {[%clk 0:02:58]} 9. f4 {[%clk 0:01:57]}  Nxd4 {[%clk 0:02:50]} 10. Bxd4 {[%clk 0:01:58]}  Nc6 {[%clk 0:02:51]} 11. Bf2 {[%clk 0:01:56]}  Be7 {[%clk 0:02:48]} 12. g4 {[%clk 0:01:44]}  Bg6 {[%clk 0:02:43]} 13. Nd2 {[%clk 0:01:35]}  h5 {[%clk 0:02:42]} 14. g5 {[%clk 0:01:35]}  f6 {[%clk 0:02:27]} 15. exf6 {[%clk 0:01:31]}  gxf6 {[%clk 0:02:28]} 16. h4 {[%clk 0:01:32]}  Qc7 {[%clk 0:02:26]} 17. Be1 {[%clk 0:01:10]}  O-O-O {[%clk 0:02:21]} 18. Bd3 {[%clk 0:01:07]}  Bxd3 {[%clk 0:02:02]} 19. cxd3 {[%clk 0:01:08]}  Kb8 {[%clk 0:02:03]} 20. Kh1 {[%clk 0:01:03]}  Rhf8 {[%clk 0:01:55]} 21. g6 {[%clk 0:00:55]}  Nd4 {[%clk 0:01:43]} 22. Nf3 {[%clk 0:00:43]}  Nf5 {[%clk 0:01:42]} 23. Qe2 {[%clk 0:00:41]}  Qd7 {[%clk 0:01:33]} 24. Rg1 {[%clk 0:00:36]}  Bd6 {[%clk 0:01:32]} 25. Bd2 {[%clk 0:00:35]}  Rg8 {[%clk 0:01:31]} 26. Rae1 {[%clk 0:00:33]}  Rde8 {[%clk 0:01:31]} 27. b3 {[%clk 0:00:32]}  Rg7 {[%clk 0:01:30]} 28. Rg2 {[%clk 0:00:31]}  Qc7 {[%clk 0:01:27]} 29. Rc1 {[%clk 0:00:26]}  Qe7 {[%clk 0:01:25]} 30. Re1 {[%clk 0:00:26]}  a6 {[%clk 0:01:20]} 31. a4 {[%clk 0:00:21]}  Qc7 {[%clk 0:01:19]} 32. Rc1 {[%clk 0:00:21]}  Qd7 {[%clk 0:01:19]} 33. Re1 {[%clk 0:00:20]}  Ka8 {[%clk 0:01:18]} 34. a5 {[%clk 0:00:18]}  Qb5 {[%clk 0:01:16]} 35. b4 {[%clk 0:00:18]}  Ree7 {[%clk 0:01:14]} 36. Rc1 {[%clk 0:00:18]}  Qe8 {[%clk 0:01:14]} 37. Qd1 {[%clk 0:00:16]}  Rxg6 {[%clk 0:01:08]} 38. Rxg6 {[%clk 0:00:15]}  Qxg6 {[%clk 0:01:09]} 39. Rc8+ {[%clk 0:00:16]}  Bb8 {[%clk 0:01:10]} 40. Qe1 {[%clk 0:00:14]}  Rg7 {[%clk 0:01:08]} 41. Qf2 {[%clk 0:00:14]}  Qg4 {[%clk 0:01:06]} 42. Kh2 {[%clk 0:00:12]}  Ng3 {[%clk 0:00:58]} 43. Be3 {[%clk 0:00:10]}  e5 {[%clk 0:00:57]} 44. fxe5 {[%clk 0:00:10]}  Qxc8 {[%clk 0:00:56]} 0-1


[Site "https://www.chess.com"]

[Event "Titled Tuesday Blitz March 08 Early 2022"]
[White "Gombocz, Ferenc Jr."]
[Black "Barros Rivadeneira, Cristhian"]
[WhiteFideId "775029"]
[BlackFideId "3609677"]
[WhiteElo "1913"]
[BlackElo "2220"]
[Result "1-0"]
[Round "05"]
[TimeControl "180+1"]
[Date "2022.03.09"]
[WhiteClock "0:00:43"]
[BlackClock "0:00:12"]

1. d4 {[%clk 0:03:00]}  Nf6 {[%clk 0:02:59]} 2. Nf3 {[%clk 0:03:01]}  g6 {[%clk 0:02:58]} 3. Nc3 {[%clk 0:02:54]}  c5 {[%clk 0:02:56]} 4. d5 {[%clk 0:02:53]}  Bg7 {[%clk 0:02:55]} 5. e4 {[%clk 0:02:52]}  d6 {[%clk 0:02:56]} 6. Bd3 {[%clk 0:02:51]}  O-O {[%clk 0:02:56]} 7. O-O {[%clk 0:02:51]}  a6 {[%clk 0:02:56]} 8. a4 {[%clk 0:02:51]}  b6 {[%clk 0:02:57]} 9. Nd2 {[%clk 0:02:47]}  Bb7 {[%clk 0:02:51]} 10. Nc4 {[%clk 0:02:41]}  Nbd7 {[%clk 0:02:36]} 11. f4 {[%clk 0:02:38]}  Ne8 {[%clk 0:02:32]} 12. Bd2 {[%clk 0:02:28]}  Nc7 {[%clk 0:02:25]} 13. Ne3 {[%clk 0:02:10]}  Nf6 {[%clk 0:01:24]} 14. g4 {[%clk 0:02:00]}  b5 {[%clk 0:01:15]} 15. axb5 {[%clk 0:01:51]}  axb5 {[%clk 0:01:11]} 16. Rxa8 {[%clk 0:01:50]}  Qxa8 {[%clk 0:01:05]} 17. g5 {[%clk 0:01:49]}  Nfe8 {[%clk 0:00:42]} 18. Nxb5 {[%clk 0:01:46]}  Nxb5 {[%clk 0:00:38]} 19. Bxb5 {[%clk 0:01:46]}  Nc7 {[%clk 0:00:38]} 20. Bd3 {[%clk 0:01:42]}  e6 {[%clk 0:00:33]} 21. c4 {[%clk 0:01:39]}  Bxb2 {[%clk 0:00:28]} 22. f5 {[%clk 0:01:38]}  exf5 {[%clk 0:00:22]} 23. exf5 {[%clk 0:01:37]}  Bd4 {[%clk 0:00:20]} 24. Kh1 {[%clk 0:01:28]}  Re8 {[%clk 0:00:20]} 25. Re1 {[%clk 0:01:12]}  Qa3 {[%clk 0:00:17]} 26. Qc2 {[%clk 0:01:07]}  Na6 {[%clk 0:00:17]} 27. fxg6 {[%clk 0:01:04]}  hxg6 {[%clk 0:00:16]} 28. Bxg6 {[%clk 0:00:58]}  Rxe3 {[%clk 0:00:16]} 29. Bxf7+ {[%clk 0:00:56]}  Kxf7 {[%clk 0:00:15]} 30. Qh7+ {[%clk 0:00:53]}  Ke8 {[%clk 0:00:13]} 31. Bxe3 {[%clk 0:00:49]}  Bxe3 {[%clk 0:00:14]} 32. Qe4+ {[%clk 0:00:47]}  Kd8 {[%clk 0:00:14]} 33. Rxe3 {[%clk 0:00:47]}  Qa1+ {[%clk 0:00:13]} 34. Re1 {[%clk 0:00:46]}  Qd4 {[%clk 0:00:12]} 35. Qxd4 {[%clk 0:00:43]}  cxd4 {[%clk 0:00:12]} 36. g6 {[%clk 0:00:43]} 1-0


[Site "https://www.chess.com"]

[Event "Titled Tuesday Blitz March 08 Early 2022"]
[White "Gracia Alvarez, Gerardo Antonio"]
[Black "Van den Dikkenberg, Erik"]
[WhiteFideId "5109124"]
[BlackFideId "1005880"]
[WhiteElo "2139"]
[BlackElo "2118"]
[Result "1-0"]
[Round "05"]
[TimeControl "180+1"]
[Date "2022.03.09"]
[WhiteClock "0:00:11"]
[BlackClock "0:00:01"]

1. e4 {[%clk 0:02:55]}  c5 {[%clk 0:02:27]} 2. Nc3 {[%clk 0:02:53]}  d6 {[%clk 0:02:24]} 3. d4 {[%clk 0:02:53]}  cxd4 {[%clk 0:02:24]} 4. Qxd4 {[%clk 0:02:53]}  Nc6 {[%clk 0:02:24]} 5. Qd2 {[%clk 0:02:53]}  g6 {[%clk 0:02:24]} 6. b3 {[%clk 0:02:53]}  Bh6 {[%clk 0:02:23]} 7. f4 {[%clk 0:02:53]}  e5 {[%clk 0:02:16]} 8. Nb5 {[%clk 0:02:53]}  Bxf4 {[%clk 0:02:08]} 9. Qxd6 {[%clk 0:02:48]}  Qxd6 {[%clk 0:02:02]} 10. Nxd6+ {[%clk 0:02:49]}  Ke7 {[%clk 0:01:46]} 11. Bxf4 {[%clk 0:02:28]}  exf4 {[%clk 0:01:45]} 12. O-O-O {[%clk 0:02:15]}  Be6 {[%clk 0:01:41]} 13. Nxb7 {[%clk 0:02:04]}  Nf6 {[%clk 0:01:41]} 14. Nc5 {[%clk 0:02:01]}  Ng4 {[%clk 0:01:31]} 15. Rd2 {[%clk 0:01:35]}  Ne3 {[%clk 0:01:19]} 16. Nf3 {[%clk 0:01:27]}  Rad8 {[%clk 0:00:51]} 17. Bd3 {[%clk 0:01:26]}  Nb4 {[%clk 0:00:44]} 18. a3 {[%clk 0:01:22]}  Nxd3+ {[%clk 0:00:37]} 19. Nxd3 {[%clk 0:01:23]}  Rc8 {[%clk 0:00:26]} 20. Nd4 {[%clk 0:01:19]}  g5 {[%clk 0:00:19]} 21. Re1 {[%clk 0:01:15]}  Rhd8 {[%clk 0:00:17]} 22. Nxe6 {[%clk 0:01:15]}  fxe6 {[%clk 0:00:17]} 23. g3 {[%clk 0:01:14]}  Rxd3 {[%clk 0:00:09]} 24. Rxd3 {[%clk 0:01:09]}  Rxc2+ {[%clk 0:00:09]} 25. Kb1 {[%clk 0:01:09]}  Rxh2 {[%clk 0:00:09]} 26. gxf4 {[%clk 0:01:07]}  gxf4 {[%clk 0:00:09]} 27. e5 {[%clk 0:01:04]}  h5 {[%clk 0:00:08]} 28. Rc3 {[%clk 0:01:03]}  Nd5 {[%clk 0:00:07]} 29. Rc4 {[%clk 0:00:52]}  Rh3 {[%clk 0:00:05]} 30. Rg1 {[%clk 0:00:46]}  f3 {[%clk 0:00:04]} 31. Ra4 {[%clk 0:00:16]}  f2 {[%clk 0:00:02]} 32. Rxa7+ {[%clk 0:00:17]}  Kf8 {[%clk 0:00:02]} 33. Rf1 {[%clk 0:00:18]}  Rh2 {[%clk 0:00:01]} 34. Ra4 {[%clk 0:00:12]}  Ne3 {[%clk 0:00:01]} 35. Rf4+ {[%clk 0:00:11]}  Ke7 {[%clk 0:00:01]} 36. R1xf2 {[%clk 0:00:11]} 1-0


[Site "https://www.chess.com"]

[Event "Titled Tuesday Blitz March 08 Early 2022"]
[White "Heinemann, Josefine"]
[Black "Fajdetic, Hrvoje"]
[WhiteFideId "12900460"]
[BlackFideId "14501945"]
[WhiteElo "2300"]
[BlackElo "2172"]
[Result "0-1"]
[Round "05"]
[TimeControl "180+1"]
[Date "2022.03.09"]
[WhiteClock "0:00:38"]
[BlackClock "0:00:14"]

1. Nf3 {[%clk 0:03:00]}  f5 {[%clk 0:02:53]} 2. b3 {[%clk 0:02:59]}  d6 {[%clk 0:02:52]} 3. Bb2 {[%clk 0:02:59]}  e5 {[%clk 0:02:52]} 4. d3 {[%clk 0:02:46]}  Nf6 {[%clk 0:02:50]} 5. Nbd2 {[%clk 0:02:41]}  Be7 {[%clk 0:02:48]} 6. e4 {[%clk 0:02:41]}  O-O {[%clk 0:02:48]} 7. exf5 {[%clk 0:02:40]}  Bxf5 {[%clk 0:02:48]} 8. Be2 {[%clk 0:02:40]}  Nc6 {[%clk 0:02:48]} 9. O-O {[%clk 0:02:39]}  Qe8 {[%clk 0:02:36]} 10. Re1 {[%clk 0:02:37]}  Nh5 {[%clk 0:02:35]} 11. d4 {[%clk 0:02:29]}  Qg6 {[%clk 0:02:22]} 12. Nxe5 {[%clk 0:02:28]}  dxe5 {[%clk 0:02:10]} 13. Bxh5 {[%clk 0:02:28]}  Qh6 {[%clk 0:02:07]} 14. d5 {[%clk 0:02:18]}  Bc5 {[%clk 0:02:02]} 15. Bf3 {[%clk 0:01:56]}  Nd4 {[%clk 0:01:48]} 16. Bxd4 {[%clk 0:01:48]}  Bxd4 {[%clk 0:01:44]} 17. Rb1 {[%clk 0:01:48]}  Bc3 {[%clk 0:01:33]} 18. Re3 {[%clk 0:01:42]}  Bd4 {[%clk 0:01:24]} 19. Re2 {[%clk 0:01:42]}  g5 {[%clk 0:01:05]} 20. Be4 {[%clk 0:01:34]}  Bg4 {[%clk 0:00:55]} 21. Nf3 {[%clk 0:01:33]}  Rf4 {[%clk 0:00:44]} 22. Qd3 {[%clk 0:01:30]}  Bb6 {[%clk 0:00:33]} 23. c4 {[%clk 0:01:20]}  Raf8 {[%clk 0:00:31]} 24. b4 {[%clk 0:01:17]}  Bxf3 {[%clk 0:00:27]} 25. Bxf3 {[%clk 0:00:53]}  g4 {[%clk 0:00:27]} 26. Bxg4 {[%clk 0:00:52]}  Bxf2+ {[%clk 0:00:22]} 27. Kh1 {[%clk 0:00:46]}  Rxg4 {[%clk 0:00:17]} 28. h3 {[%clk 0:00:38]}  Rg3 {[%clk 0:00:14]} 0-1


[Site "https://www.chess.com"]

[Event "Titled Tuesday Blitz March 08 Early 2022"]
[White "Hua, Lefong"]
[Black "Alonso Rosell, Alvar"]
[WhiteFideId "2602253"]
[BlackFideId "2270544"]
[WhiteElo "2622"]
[BlackElo "2474"]
[Result "0-1"]
[Round "05"]
[TimeControl "180+1"]
[Date "2022.03.08"]
[WhiteClock "0:00:20"]
[BlackClock "0:00:34"]

1. d4 {[%clk 0:02:57]}  Nf6 {[%clk 0:02:49]} 2. c4 {[%clk 0:02:57]}  e6 {[%clk 0:02:49]} 3. Nc3 {[%clk 0:02:57]}  Bb4 {[%clk 0:02:48]} 4. f3 {[%clk 0:02:58]}  d5 {[%clk 0:02:47]} 5. a3 {[%clk 0:02:58]}  Be7 {[%clk 0:02:48]} 6. e4 {[%clk 0:02:41]}  dxc4 {[%clk 0:02:47]} 7. Bxc4 {[%clk 0:02:40]}  c5 {[%clk 0:02:48]} 8. Nge2 {[%clk 0:02:39]}  O-O {[%clk 0:02:36]} 9. Be3 {[%clk 0:02:37]}  cxd4 {[%clk 0:02:16]} 10. Nxd4 {[%clk 0:02:35]}  a6 {[%clk 0:02:14]} 11. Qe2 {[%clk 0:02:31]}  Bd7 {[%clk 0:02:12]} 12. O-O {[%clk 0:02:27]}  Nc6 {[%clk 0:02:12]} 13. Rfd1 {[%clk 0:02:25]}  Qc7 {[%clk 0:02:12]} 14. Rac1 {[%clk 0:02:25]}  Rac8 {[%clk 0:02:12]} 15. Ba2 {[%clk 0:02:24]}  Qe5 {[%clk 0:02:07]} 16. f4 {[%clk 0:02:08]}  Nxd4 {[%clk 0:02:02]} 17. Rxd4 {[%clk 0:01:51]}  Qc7 {[%clk 0:01:50]} 18. e5 {[%clk 0:01:46]}  Ne8 {[%clk 0:01:50]} 19. Bb1 {[%clk 0:01:28]}  g6 {[%clk 0:01:44]} 20. Rdd1 {[%clk 0:01:21]}  Bc6 {[%clk 0:01:42]} 21. Ne4 {[%clk 0:01:18]}  Ng7 {[%clk 0:01:41]} 22. Nd6 {[%clk 0:01:04]}  Rcd8 {[%clk 0:01:39]} 23. Bc5 {[%clk 0:01:02]}  b6 {[%clk 0:01:29]} 24. Qxa6 {[%clk 0:00:49]}  bxc5 {[%clk 0:01:26]} 25. Rxc5 {[%clk 0:00:49]}  Bxd6 {[%clk 0:01:09]} 26. exd6 {[%clk 0:00:48]}  Bb7 {[%clk 0:00:53]} 27. Qa7 {[%clk 0:00:37]}  Qb8 {[%clk 0:00:43]} 28. Qxb8 {[%clk 0:00:35]}  Rxb8 {[%clk 0:00:44]} 29. b4 {[%clk 0:00:34]}  Rfd8 {[%clk 0:00:44]} 30. b5 {[%clk 0:00:32]}  Bd5 {[%clk 0:00:43]} 31. a4 {[%clk 0:00:29]}  Ne8 {[%clk 0:00:38]} 32. a5 {[%clk 0:00:25]}  Nxd6 {[%clk 0:00:38]} 33. b6 {[%clk 0:00:26]}  Nb7 {[%clk 0:00:35]} 34. Rb5 {[%clk 0:00:26]}  Bc6 {[%clk 0:00:33]} 35. Rxd8+ {[%clk 0:00:24]}  Rxd8 {[%clk 0:00:34]} 36. Rb2 {[%clk 0:00:20]}  Nxa5 {[%clk 0:00:34]} 0-1


[Site "https://www.chess.com"]